fUST/lending_fUST_20250707
["ID","MTS","AMOUNT","RATE_DAILY","PERIOD"]
[370052832,1751867153120,-202.9000347,0.00016917,2]
[370052833,1751867153149,-168.12348118,0.00016923,2]
[370052834,1751867153173,-191.53460498,0.00017015,2]
[370052835,1751867153199,-504.64,0.00017017,3]
[370052836,1751867153229,-252.32,0.00017017,3]
[370052837,1751867153259,-757.0,0.00017017,3]
[370052838,1751867153284,-300.0,0.0001702,2]
[370052839,1751867153307,-261.0,0.0001702,2]
[370052840,1751867153330,-1200.0,0.0001702,2]
[370052841,1751867153357,-460.0,0.00017021,2]
[370052842,1751867153386,-460.0,0.00017021,2]
[370052843,1751867153411,-460.0,0.00017021,2]
[370052844,1751867153435,-460.0,0.00017021,2]
[370052845,1751867153460,-460.0,0.00017021,2]
[370052846,1751867153486,-460.27412574,0.00017021,2]
[370052847,1751867153511,-460.0,0.00017021,2]
[370052848,1751867153536,-506.16850802,0.00017021,2]
[370052849,1751867153560,-460.0,0.00017021,2]
[370052850,1751867153584,-460.0,0.00017021,2]
[370052851,1751867153608,-463.09333871,0.00017021,2]
[370052852,1751867153634,-464.52565378,0.00017021,2]
[370052853,1751867153659,-460.0,0.00017021,2]
[370052854,1751867153683,-460.0,0.00017021,2]
[370052855,1751867153711,-462.24701882,0.00017021,2]
[370052856,1751867153735,-462.68941188,0.00017021,2]
[370052857,1751867153759,-50000.0,0.00017021,2]
[370052858,1751867153783,-1200.0,0.00017022,2]
[370052859,1751867153808,-462.60996448,0.00017022,2]
[370052860,1751867153831,-460.0,0.00017022,2]
[370052861,1751867153856,-565.29297233,0.00017022,2]
[370052863,1751867153880,-500.0,0.00017022,2]
[370052864,1751867153905,-500.0,0.00017022,2]
[370052865,1751867153928,-174.751048,0.00017022,2]
[370052866,1751867153952,-500.0,0.00017022,2]
[370052867,1751867153976,-500.0,0.00017022,2]
[370052868,1751867154001,-500.0,0.00017022,2]
[370052869,1751867154025,-500.0,0.00017022,2]
[370052870,1751867154051,-500.0,0.00017022,2]
[370052871,1751867154078,-500.0,0.00017022,2]
[370052872,1751867154101,-213.1240608,0.00017022,2]
[370052873,1751867154126,-500.0,0.00017022,2]
[370052874,1751867154149,-500.0,0.00017022,2]
[370052875,1751867154346,-462.68249383,0.00017022,2]
[370052876,1751867154373,-500.0,0.00017022,2]
[370052877,1751867154395,-500.0,0.00017022,2]
[370052878,1751867154417,-500.0,0.00017022,2]
[370052879,1751867154438,-500.0,0.00017022,2]
[370052880,1751867154459,-591.8868057,0.00017022,2]
[370052881,1751867154480,-500.0,0.00017022,2]
[370052882,1751867154502,-500.0,0.00017022,2]
[370052883,1751867154523,-525.33299991,0.00017022,2]
[370052884,1751867154545,-500.0,0.00017022,2]
[370052885,1751867154566,-500.0,0.00017022,2]
[370052886,1751867154588,-500.0,0.00017022,2]
[370052887,1751867154609,-500.0,0.00017022,2]
[370052888,1751867154637,-500.0,0.00017022,2]
[370052889,1751867154667,-500.0,0.00017022,2]
[370052890,1751867154691,-500.0,0.00017022,2]
[370052891,1751867154714,-240.19295553,0.00017022,2]
[370052892,1751867154738,-500.0,0.00017022,2]
[370052893,1751867154762,-500.0,0.00017022,2]
[370052894,1751867154786,-500.0,0.00017022,2]
[370052895,1751867154810,-500.0,0.00017022,2]
[370052896,1751867154835,-202.2421785,0.00017022,2]
[370052897,1751867215089,-153.03215247,0.00016921,2]
[370052898,1751867215111,-0.04571836,0.00016923,2]
[370052899,1751867228123,-168.07776281,0.00016923,2]
[370052900,1751867228146,-1200.0,0.0001702,2]
[370052901,1751867228168,-300.0,0.0001702,2]
[370052902,1751867228189,-321.58156661,0.00017021,2]
[370052903,1751867228220,165.412141,0.00013699,2]
[370052904,1751867251454,-138.41843339,0.00017021,2]
[370052905,1751867251477,-152.21162964,0.00017021,2]
[370052906,1751867339051,171.52536177,0.00025353,120]
[370052909,1751867352177,-153.67015141,0.00016922,2]
[370052910,1751867352199,-252.32,0.00017015,3]
[370052911,1751867352220,-756.96,0.00017015,3]
[370052912,1751867352242,-300.0,0.0001702,2]
[370052913,1751867352265,-350.80598212,0.00017021,2]
[370052914,1751867352297,-500.0,0.00017021,2]
[370052915,1751867352322,-461.58129845,0.00017021,2]
[370052916,1751867352347,-460.3873516,0.00017021,2]
[370052917,1751867352372,-461.61852314,0.00017021,2]
[370052918,1751867352396,-250.81354404,0.00017021,2]
[370052919,1751867352419,-461.43430241,0.00017021,2]
[370052920,1751867352442,-460.0,0.00017021,2]
[370052921,1751867352465,-464.62959753,0.00017021,2]
[370052922,1751867352488,-460.0,0.00017021,2]
[370052923,1751867352510,-460.0,0.00017021,2]
[370052924,1751867352533,-460.0,0.00017021,2]
[370052925,1751867352555,-463.97974145,0.00017021,2]
[370052926,1751867352577,-460.0,0.00017021,2]
[370052927,1751867352599,-461.68751329,0.00017021,2]
[370052928,1751867352623,-460.0,0.00017021,2]
[370052929,1751867352646,-460.0,0.00017021,2]
[370052930,1751867352667,-460.0,0.00017021,2]
[370052931,1751867352690,-465.23106461,0.00017021,2]
[370052932,1751867352713,-462.55633614,0.00017021,2]
[370052933,1751867352735,-460.82367802,0.00017021,2]
[370052934,1751867352757,-460.0,0.00017021,2]
[370052935,1751867352778,-312.96872419,0.00017021,2]
[370052936,1751867352800,-460.0,0.00017021,2]
[370052937,1751867352823,-460.0,0.00017021,2]
[370052938,1751867352845,-462.000712,0.00017021,2]
[370052939,1751867352868,-460.0,0.00017021,2]
[370052940,1751867352892,-463.19720853,0.00017021,2]
[370052941,1751867352913,-460.0,0.00017021,2]
[370052942,1751867352935,-460.0,0.00017021,2]
[370052943,1751867352957,-460.0,0.00017021,2]
[370052944,1751867352979,-596.46900247,0.00017021,2]
[370052945,1751867353000,-460.0,0.00017021,2]
[370052946,1751867353022,-460.0,0.00017021,2]
[370052947,1751867353042,-460.0,0.00017021,2]
[370052948,1751867353064,-460.0,0.00017021,2]
[370052949,1751867353085,-461.10235407,0.00017021,2]
[370052950,1751867353105,-460.0,0.00017021,2]
[370052951,1751867353127,-460.0,0.00017021,2]
[370052952,1751867353149,-460.0,0.00017021,2]
[370052953,1751867353171,-460.0,0.00017021,2]
[370052954,1751867353191,-460.0,0.00017021,2]
[370052955,1751867353211,-460.0,0.00017021,2]
[370052956,1751867353231,-461.06958825,0.00017021,2]
[370052957,1751867353254,-460.0,0.00017021,2]
[370052958,1751867353275,-460.0,0.00017021,2]
[370052959,1751867353296,-462.4764173,0.00017021,2]
[370052960,1751867353318,-460.0,0.00017021,2]
[370052961,1751867353340,-492.32,0.00017021,2]
[370052962,1751867353362,-460.40179697,0.00017021,2]
[370052963,1751867353385,-460.0,0.00017021,2]
[370052964,1751867353411,-460.0,0.00017021,2]
[370052965,1751867353433,-460.0,0.00017021,2]
[370052966,1751867353453,-460.0,0.00017021,2]
[370052967,1751867353479,-460.0,0.00017021,2]
[370052968,1751867353500,-460.0,0.00017021,2]
[370052969,1751867353521,-461.58901879,0.00017021,2]
[370052970,1751867353543,-460.0,0.00017021,2]
[370052971,1751867353569,-460.0,0.00017021,2]
[370052972,1751867353590,-460.0,0.00017021,2]
[370052973,1751867353611,-465.38555159,0.00017021,2]
[370052974,1751867353633,-460.0,0.00017021,2]
[370052975,1751867353655,-461.67153778,0.00017021,2]
[370052976,1751867353678,-460.0,0.00017021,2]
[370052977,1751867353698,-464.0121497,0.00017021,2]
[370052978,1751867353719,-460.42561835,0.00017021,2]
[370052979,1751867353741,-510.70723587,0.00017021,2]
[370052980,1751867353764,-460.0,0.00017021,2]
[370052981,1751867353786,-460.0,0.00017021,2]
[370052982,1751867353807,-484.11034715,0.00017021,2]
[370052983,1751867353827,-464.2106893,0.00017021,2]
[370052984,1751867353848,-460.0,0.00017021,2]
[370052985,1751867353871,-460.0,0.00017021,2]
[370052986,1751867353891,-461.64360349,0.00017021,2]
[370052987,1751867353912,-462.71451407,0.00017021,2]
[370052988,1751867353933,-460.0,0.00017021,2]
[370052989,1751867353955,-460.0,0.00017021,2]
[370052990,1751867353977,-462.7931949,0.00017021,2]
[370052991,1751867353998,-463.03405252,0.00017021,2]
[370052992,1751867354020,-458.06585399,0.00017021,2]
[370052993,1751867354044,-463.79901545,0.00017021,2]
[370052994,1751867354068,-263.0383956,0.00017021,2]
[370052995,1751867354091,-463.54699304,0.00017021,2]
[370052996,1751867354112,-461.4687985,0.00017021,2]
[370052997,1751867354132,-375.34729397,0.00017021,2]
[370052998,1751867354156,-460.0,0.00017021,2]
[370052999,1751867354179,-462.24876756,0.00017021,2]
[370053000,1751867354202,-460.0,0.00017021,2]
[370053001,1751867354222,-461.67693527,0.00017021,2]
[370053002,1751867354243,-15170.45193427,0.00017021,2]
[370053003,1751867354268,-500.0,0.00017022,2]
[370053004,1751867354289,-500.0,0.00017022,2]
[370053005,1751867354309,-460.0,0.00017022,2]
[370053006,1751867354330,-460.0,0.00017022,2]
[370053007,1751867354352,-460.0,0.00017022,2]
[370053008,1751867354376,-460.0,0.00017022,2]
[370053009,1751867354419,-460.73414651,0.00017022,2]
[370053010,1751867354463,-460.0,0.00017022,2]
[370053011,1751867354508,-477.80402965,0.00017022,2]
[370053012,1751867354557,-460.0,0.00017022,2]
[370053013,1751867354595,-460.0,0.00017022,2]
[370053014,1751867354616,-460.0,0.00017022,2]
[370053015,1751867354639,-460.0,0.00017022,2]
[370053016,1751867354661,-500.0,0.00017022,2]
[370053017,1751867354682,-500.0,0.00017022,2]
[370053018,1751867354704,-500.0,0.00017022,2]
[370053019,1751867354727,-500.0,0.00017022,2]
[370053020,1751867354749,-500.0,0.00017022,2]
[370053021,1751867354770,-500.0,0.00017022,2]
[370053022,1751867354793,-500.0,0.00017022,2]
[370053023,1751867354815,-500.0,0.00017022,2]
[370053024,1751867354837,-500.0,0.00017022,2]
[370053025,1751867354861,-500.0,0.00017022,2]
[370053026,1751867354882,-500.0,0.00017022,2]
[370053027,1751867354903,-500.0,0.00017022,2]
[370053028,1751867354924,-500.0,0.00017022,2]
[370053029,1751867355081,-500.0,0.00017022,2]
[370053030,1751867355105,-626.60063744,0.00017022,2]
[370053031,1751867355130,-500.0,0.00017022,2]
[370053032,1751867355153,-500.0,0.00017022,2]
[370053033,1751867355175,-500.0,0.00017022,2]
[370053034,1751867355198,-500.0,0.00017022,2]
[370053035,1751867355219,-500.0,0.00017022,2]
[370053036,1751867355240,-500.0,0.00017022,2]
[370053037,1751867355266,-500.0,0.00017022,2]
[370053038,1751867355288,-500.0,0.00017022,2]
[370053039,1751867355309,-324.1826526,0.00017022,2]
[370053040,1751867355330,-500.0,0.00017022,2]
[370053041,1751867355353,-500.0,0.00017022,2]
[370053042,1751867355374,-190.23333794,0.00017022,2]
[370053043,1751867355395,-500.0,0.00017022,2]
[370053044,1751867355415,-500.0,0.00017022,2]
[370053045,1751867355438,-377.97086181,0.00017022,2]
[370053046,1751867355459,-500.0,0.00017022,2]
[370053047,1751867355480,-500.0,0.00017022,2]
[370053048,1751867355500,-460.0,0.00017022,2]
[370053049,1751867355520,-500.0,0.00017022,2]
[370053050,1751867355542,-392.0264144,0.00017022,2]
[370053051,1751867355563,-500.0,0.00017022,2]
[370053052,1751867355585,-500.0,0.00017022,2]
[370053053,1751867355606,-460.0,0.00017022,2]
[370053054,1751867355627,-460.0,0.00017022,2]
[370053055,1751867355650,-460.0,0.00017022,2]
[370053056,1751867355670,-460.0,0.00017022,2]
[370053057,1751867355691,-460.0,0.00017022,2]
[370053058,1751867355712,-460.0,0.00017023,2]
[370053059,1751867355733,-460.0,0.00017023,2]
[370053060,1751867355755,-464.87917726,0.00017023,2]
[370053061,1751867355775,-460.39605211,0.00017023,2]
[370053062,1751867355797,-460.0,0.00017023,2]
[370053063,1751867355820,-460.0,0.00017023,2]
[370053064,1751867355843,-460.0,0.00017023,2]
[370053065,1751867355866,-460.0,0.00017023,2]
[370053066,1751867355887,-460.87050425,0.00017023,2]
[370053067,1751867355909,-465.81446955,0.00017023,2]
[370053068,1751867355930,-465.71090551,0.00017023,2]
[370053069,1751867355951,-463.39808848,0.00017023,2]
[370053070,1751867355972,-464.58028659,0.00017023,2]
[370053071,1751867355993,-460.0,0.00017023,2]
[370053072,1751867356014,-461.36909898,0.00017023,2]
[370053073,1751867356035,-462.55391539,0.00017023,2]
[370053074,1751867356054,-415.61981802,0.00017023,2]
[370053075,1751867356076,-460.0,0.00017023,2]
[370053076,1751867356096,-462.54850476,0.00017023,2]
[370053077,1751867356119,-460.0,0.00017023,2]
[370053078,1751867356140,-460.0,0.00017023,2]
[370053079,1751867356162,-461.1672208,0.00017023,2]
[370053080,1751867356182,-457.41967014,0.00017023,2]
[370053081,1751867356203,-460.83446027,0.00017023,2]
[370053082,1751867356224,-460.0,0.00017023,2]
[370053083,1751867356245,-462.47157703,0.00017023,2]
[370053084,1751867356270,-465.45632684,0.00017023,2]
[370053085,1751867356291,-465.50770004,0.00017023,2]
[370053086,1751867356314,-460.0,0.00017023,2]
[370053087,1751867356335,-464.83896722,0.00017023,2]
[370053088,1751867356356,-463.4480285,0.00017023,2]
[370053089,1751867356377,-461.37416713,0.00017023,2]
[370053090,1751867356399,-503.59243971,0.00017023,2]
[370053091,1751867356421,-461.15148675,0.00017023,2]
[370053092,1751867356446,-500.0,0.00017023,2]
[370053093,1751867356467,-464.64327286,0.00017023,2]
[370053094,1751867356489,-465.10951102,0.00017023,2]
[370053095,1751867356510,-460.0,0.00017023,2]
[370053096,1751867356530,-461.38205385,0.00017023,2]
[370053097,1751867356550,-460.69669915,0.00017023,2]
[370053098,1751867356571,-460.0,0.00017023,2]
[370053099,1751867356592,-460.0,0.00017023,2]
[370053100,1751867356618,-464.06780523,0.00017023,2]
[370053101,1751867356639,-460.0,0.00017023,2]
[370053102,1751867356661,-460.0,0.00017023,2]
[370053103,1751867356682,-460.0,0.00017023,2]
[370053104,1751867356702,-460.0,0.00017023,2]
[370053105,1751867356723,-460.0,0.00017023,2]
[370053106,1751867356744,-460.0,0.00017023,2]
[370053107,1751867356765,-460.0,0.00017023,2]
[370053108,1751867356786,-460.0,0.00017023,2]
[370053109,1751867356808,-463.70617743,0.00017023,2]
[370053110,1751867356830,-460.0,0.00017023,2]
[370053111,1751867356852,-460.0,0.00017023,2]
[370053112,1751867356881,-460.0,0.00017023,2]
[370053113,1751867356907,-460.0,0.00017023,2]
[370053114,1751867356928,-460.0,0.00017023,2]
[370053115,1751867356951,-460.0,0.00017023,2]
[370053116,1751867356973,-460.0,0.00017023,2]
[370053117,1751867356994,-460.0,0.00017023,2]
[370053118,1751867357016,-468.30303533,0.00017023,2]
[370053119,1751867357038,-463.07188971,0.00017023,2]
[370053120,1751867357059,-460.0,0.00017023,2]
[370053121,1751867357080,-462.59618928,0.00017023,2]
[370053122,1751867357102,-460.0,0.00017023,2]
[370053123,1751867357124,-460.0,0.00017023,2]
[370053124,1751867357145,-462.97717014,0.00017023,2]
[370053125,1751867357167,-460.0,0.00017023,2]
[370053126,1751867357189,-456.98536791,0.00017023,2]
[370053127,1751867357211,-460.0,0.00017023,2]
[370053128,1751867357236,-461.9012402,0.00017023,2]
[370053129,1751867357260,-460.0,0.00017023,2]
[370053130,1751867357283,-460.0,0.00017023,2]
[370053131,1751867357309,-460.0,0.00017023,2]
[370053132,1751867357330,-568.3051433,0.00017023,2]
[370053133,1751867357354,-460.0,0.00017023,2]
[370053134,1751867357377,-460.0,0.00017023,2]
[370053135,1751867357403,-460.0,0.00017023,2]
[370053136,1751867357424,-465.26027034,0.00017023,2]
[370053137,1751867357447,-500.0,0.00017023,2]
[370053138,1751867357469,-460.0,0.00017023,2]
[370053139,1751867357491,-393.49709009,0.00017023,2]
[370053140,1751867357512,-460.0,0.00017023,2]
[370053141,1751867357536,-473.75516351,0.00017023,2]
[370053142,1751867357560,-460.0,0.00017023,2]
[370053143,1751867357583,-460.0,0.00017023,2]
[370053144,1751867357604,-460.0,0.00017023,2]
[370053145,1751867357627,-359.17160469,0.00017023,2]
[370053146,1751867357647,-463.08535527,0.00017023,2]
[370053147,1751867357796,-461.09357116,0.00017023,2]
[370053148,1751867357840,-460.75367098,0.00017023,2]
[370053149,1751867357864,-467.02949938,0.00017023,2]
[370053150,1751867357890,-506.28136508,0.00017023,2]
[370053151,1751867357912,-460.0,0.00017023,2]
[370053152,1751867357933,-464.30845221,0.00017023,2]
[370053153,1751867357955,-460.0,0.00017023,2]
[370053154,1751867357977,-460.0,0.00017023,2]
[370053155,1751867357998,-460.0,0.00017023,2]
[370053156,1751867358020,-460.0,0.00017023,2]
[370053157,1751867358041,-460.0,0.00017023,2]
[370053158,1751867358063,-461.34999115,0.00017023,2]
[370053159,1751867358084,-460.0,0.00017023,2]
[370053160,1751867358106,-460.0,0.00017023,2]
[370053161,1751867358127,-460.0,0.00017023,2]
[370053162,1751867358149,-460.0,0.00017023,2]
[370053163,1751867358170,-460.0,0.00017023,2]
[370053164,1751867358191,-461.87308974,0.00017023,2]
[370053165,1751867358212,-460.0,0.00017023,2]
[370053166,1751867358236,-460.0,0.00017023,2]
[370053167,1751867358264,-460.0,0.00017023,2]
[370053168,1751867358286,-460.0,0.00017023,2]
[370053169,1751867358308,-468.40345094,0.00017023,2]
[370053170,1751867358329,-497.26117295,0.00017023,2]
[370053171,1751867358351,-590.18538499,0.00017023,2]
[370053172,1751867358372,-460.0,0.00017023,2]
[370053173,1751867358393,-460.86978411,0.00017024,2]
[370053174,1751867358414,-460.0,0.00017024,2]
[370053175,1751867358435,-232.37161075,0.00017024,2]
[370053176,1751867358456,-460.0,0.00017024,2]
[370053177,1751867358477,-465.30919978,0.00017024,2]
[370053178,1751867358498,-541.78783455,0.00017024,2]
[370053179,1751867358519,-461.8452125,0.00017024,2]
[370053180,1751867358540,-461.20468128,0.00017024,2]
[370053181,1751867358561,-625.16052829,0.00017024,2]
[370053182,1751867358583,-463.60278443,0.00017024,2]
[370053183,1751867358604,-463.77958941,0.00017024,2]
[370053184,1751867358627,-460.0,0.00017024,2]
[370053185,1751867358648,-462.46629176,0.00017024,2]
[370053186,1751867358670,-463.34983337,0.00017024,2]
[370053187,1751867358691,-500.0,0.00017024,2]
[370053188,1751867358714,-500.0,0.00017024,2]
[370053189,1751867358736,-500.0,0.00017024,2]
[370053190,1751867358758,-500.0,0.00017024,2]
[370053191,1751867358780,-500.0,0.00017024,2]
[370053192,1751867358803,-460.0,0.00017024,2]
[370053193,1751867358827,-460.0,0.00017024,2]
[370053194,1751867358850,-460.0,0.00017024,2]
[370053195,1751867358874,-460.0,0.00017024,2]
[370053196,1751867358896,-460.0,0.00017024,2]
[370053197,1751867358920,-500.0,0.00017024,2]
[370053198,1751867358944,-500.0,0.00017024,2]
[370053199,1751867358972,-500.0,0.00017024,2]
[370053200,1751867358995,-500.0,0.00017024,2]
[370053201,1751867359018,-500.0,0.00017024,2]
[370053202,1751867359040,-460.0,0.00017024,2]
[370053203,1751867359063,-460.0,0.00017024,2]
[370053204,1751867359086,-460.0,0.00017024,2]
[370053205,1751867359108,-460.0,0.00017024,2]
[370053206,1751867359131,-460.0,0.00017024,2]
[370053207,1751867359152,-466.28028032,0.00017024,2]
[370053208,1751867359174,-460.0,0.00017024,2]
[370053209,1751867359196,-460.0,0.00017024,2]
[370053210,1751867359218,-460.0,0.00017024,2]
[370053211,1751867359239,-458.40803473,0.00017025,2]
[370053212,1751867359263,-465.24988384,0.00017025,2]
[370053213,1751867359284,-464.24571512,0.00017025,2]
[370053214,1751867359308,-462.33204335,0.00017025,2]
[370053215,1751867359331,-461.2209442,0.00017025,2]
[370053216,1751867359353,-468.12325864,0.00017025,2]
[370053217,1751867359375,-461.15181255,0.00017025,2]
[370053218,1751867359397,-464.64748081,0.00017025,2]
[370053219,1751867359417,-462.80407696,0.00017025,2]
[370053220,1751867359438,-462.27214942,0.00017025,2]
[370053221,1751867359459,-466.57299953,0.00017025,2]
[370053222,1751867359480,-466.33934922,0.00017025,2]
[370053223,1751867359502,-487.91545772,0.00017025,2]
[370053224,1751867359525,-554.38608687,0.00017025,2]
[370053225,1751867359547,-460.0,0.00017025,2]
[370053226,1751867359569,-462.89365494,0.00017025,2]
[370053227,1751867359589,-461.83955735,0.00017025,2]
[370053228,1751867359610,-241.56603778,0.00017025,2]
[370053229,1751867359633,-466.7288496,0.00017025,2]
[370053230,1751867359654,-460.0,0.00017025,2]
[370053231,1751867359674,-464.86082128,0.00017025,2]
[370053232,1751867359699,-465.23630897,0.00017025,2]
[370053233,1751867359721,-463.93135889,0.00017025,2]
[370053234,1751867359743,-462.35633799,0.00017025,2]
[370053235,1751867359766,-588.64841893,0.00017025,2]
[370053236,1751867359788,-436.17052965,0.00017025,2]
[370053237,1751867359811,-463.98286211,0.00017025,2]
[370053238,1751867359833,-460.0,0.00017025,2]
[370053239,1751867359857,-462.54614846,0.00017025,2]
[370053240,1751867359880,-462.96843261,0.00017025,2]
[370053241,1751867359909,-463.68024736,0.00017025,2]
[370053242,1751867359933,-464.8090447,0.00017025,2]
[370053243,1751867359956,-466.45473241,0.00017025,2]
[370053244,1751867359980,-466.00783045,0.00017025,2]
[370053245,1751867360003,-465.1892588,0.00017025,2]
[370053246,1751867360027,-521.17387603,0.00017025,2]
[370053247,1751867360050,-460.0,0.00017025,2]
[370053248,1751867360074,-460.0,0.00017025,2]
[370053249,1751867360098,-460.0,0.00017025,2]
[370053250,1751867360120,-463.74463994,0.00017025,2]
[370053251,1751867360143,-500.0,0.00017025,2]
[370053252,1751867360166,-460.0,0.00017025,2]
[370053253,1751867360190,-460.0,0.00017025,2]
[370053254,1751867360212,-469.74412353,0.00017025,2]
[370053255,1751867360235,-460.0,0.00017025,2]
[370053256,1751867360260,-460.0,0.00017025,2]
[370053257,1751867360284,-460.0,0.00017025,2]
[370053258,1751867360308,-460.0,0.00017025,2]
[370053259,1751867360330,-176.48868238,0.00017025,2]
[370053260,1751867360357,-460.0,0.00017025,2]
[370053261,1751867360494,-463.22477532,0.00017025,2]
[370053262,1751867360519,-460.0,0.00017025,2]
[370053263,1751867360543,-478.60196663,0.00017025,2]
[370053264,1751867360566,-461.63890809,0.00017025,2]
[370053265,1751867360589,-460.0,0.00017025,2]
[370053266,1751867360612,-460.0,0.00017025,2]
[370053267,1751867360634,-460.0,0.00017025,2]
[370053268,1751867360655,-460.0,0.00017025,2]
[370053269,1751867360676,-460.0,0.00017025,2]
[370053270,1751867360698,-460.0,0.00017025,2]
[370053271,1751867360720,-460.0,0.00017025,2]
[370053272,1751867360741,-462.07229273,0.00017025,2]
[370053273,1751867360763,-460.0,0.00017025,2]
[370053274,1751867360786,-460.0,0.00017025,2]
[370053275,1751867360809,-460.0,0.00017025,2]
[370053276,1751867360830,-463.07447806,0.00017025,2]
[370053277,1751867360852,-460.0,0.00017025,2]
[370053278,1751867360873,-460.0,0.00017025,2]
[370053279,1751867360894,-460.0,0.00017025,2]
[370053280,1751867360916,-460.0,0.00017025,2]
[370053281,1751867360936,-460.84953304,0.00017025,2]
[370053282,1751867360958,-460.0,0.00017025,2]
[370053283,1751867360980,-460.0,0.00017025,2]
[370053284,1751867361004,-211.22170706,0.00017025,2]
[370053285,1751867361025,-460.0,0.00017025,2]
[370053286,1751867361047,-460.0,0.00017025,2]
[370053287,1751867361070,-460.0,0.00017025,2]
[370053288,1751867361092,-504.669488,0.00017025,2]
[370053289,1751867361114,-460.0,0.00017025,2]
[370053290,1751867361136,-461.56180502,0.00017025,2]
[370053291,1751867361157,-462.80588235,0.00017025,2]
[370053292,1751867361178,-460.0,0.00017025,2]
[370053293,1751867361200,-460.0,0.00017025,2]
[370053294,1751867361221,-460.0,0.00017025,2]
[370053295,1751867361241,-460.0,0.00017025,2]
[370053296,1751867361265,-463.22487347,0.00017025,2]
[370053297,1751867361287,-461.29389308,0.00017025,2]
[370053298,1751867361308,-460.0,0.00017025,2]
[370053299,1751867361330,-460.0,0.00017025,2]
[370053300,1751867361352,-460.0,0.00017025,2]
[370053301,1751867361373,-466.34537521,0.00017025,2]
[370053302,1751867361393,-460.0,0.00017025,2]
[370053303,1751867361415,-464.00365792,0.00017025,2]
[370053304,1751867361438,-460.0,0.00017025,2]
[370053305,1751867361459,-460.0,0.00017025,2]
[370053306,1751867361480,-460.0,0.00017025,2]
[370053307,1751867361501,-461.53448679,0.00017025,2]
[370053308,1751867361522,-461.32215777,0.00017025,2]
[370053309,1751867361542,-460.48162977,0.00017025,2]
[370053310,1751867361565,-584.30488272,0.00017025,2]
[370053311,1751867361590,-467.7,0.00017025,2]
[370053312,1751867361611,-460.89423323,0.00017025,2]
[370053313,1751867361633,-460.0,0.00017025,2]
[370053314,1751867361653,-500.0,0.00017025,2]
[370053315,1751867361676,-460.0,0.00017025,2]
[370053316,1751867361701,-460.0,0.00017025,2]
[370053317,1751867361724,-460.0,0.00017025,2]
[370053318,1751867361744,-462.36671225,0.00017025,2]
[370053319,1751867361766,-460.0,0.00017025,2]
[370053320,1751867361789,-412.34228583,0.00017025,2]
[370053321,1751867361810,-460.0,0.00017025,2]
[370053322,1751867361832,-460.0,0.00017025,2]
[370053323,1751867361853,-460.0,0.00017025,2]
[370053324,1751867361875,-461.48686186,0.00017025,2]
[370053325,1751867361898,-460.0,0.00017025,2]
[370053326,1751867361920,-460.0,0.00017025,2]
[370053327,1751867361940,-460.0,0.00017025,2]
[370053328,1751867361961,-460.0,0.00017025,2]
[370053329,1751867361982,-531.92547465,0.00017025,2]
[370053330,1751867362002,-460.0,0.00017025,2]
[370053331,1751867362022,-462.87673652,0.00017025,2]
[370053332,1751867362044,-460.0,0.00017025,2]
[370053333,1751867362066,-460.0,0.00017025,2]
[370053334,1751867362092,-460.0,0.00017025,2]